[Event "7th Iberoamerican-ch 2019"]
[Site "Linares"]
[Date "2019.08.15"]
[Round "6.40"]
[White "Gomez Barrera, Javiera Belen"]
[Black "Alvarez Morales, Miguel"]
[Result "1/2-1/2"]
[ECO "B42"]
[WhiteElo "2156"]
[BlackElo "1965"]
[Annotator "NA"]
[PlyCount "133"]
[EventDate "2019.08.10"]
[EventType "swiss"]
[EventCountry "ESP"]
[SourceTitle "playchess.com"]
[Source "ChessBase"]
[SourceQuality "1"]
[TimeControl "5400+30"]

1. e4 c5 {[%emt 0:00:00]} 2. Nf3 {[%emt 0:00:00]} e6 {[%emt 0:00:00]} 3. d4 {[%emt 0:00:00]} cxd4 {[%emt 0:00:00]} 4. Nxd4 {[%emt 0:00:00]} a6 {[%emt 0:00:00]} 5. Bd3 {[%emt 0:00:38]} Nf6 {[%emt 0:00:00]} 6. O-O {[%emt 0:00:16]} d6 {[%emt 0:00:05]} 7. Qe2 {[%emt 0:01:44]} Nbd7 {[%emt 0:00:46]} 8. c4 {[%emt 0:01:45]} Be7 {[%emt 0:00:07]} 9. f4 {[%emt 0:01:15]} Qc7 {[%emt 0:00:11]} 10. Nc3 {[%emt 0:00:50]} O-O {[%emt 0:00:07]} 11. Nf3 g6 {[%emt 0:07:16]} 12. Bd2 {[%emt 0:28:42]} Nc5 {[%emt 0:03:11]} 13. Bc2 b5 {[%emt 0:01:45]} 14. b4 {[%emt 0:12:52]} Ncd7 {[%emt 0:00:22]} 15. cxb5 {[%emt 0:03:49]} d5 {[%emt 0:07:05]} 16. exd5 {[%emt 0:18:56]} Bxb4 {[%emt 0:00:20]} 17. dxe6 {[%emt 0:01:40]} Bxc3 {[%emt 0:02:42]} 18. Bxc3 {[%emt 0:02:48]} Qxc3 {[%emt 0:00:32]} 19. exd7 {[%emt 0:00:30]} Bxd7 {[%emt 0:01:17]} 20. bxa6 {[%emt 0:04:17]} Qc5+ {[%emt 0:06:30]} 21. Kh1 {[%emt 0:02:26]} Bb5 {[%emt 0:01:18]} 22. Bd3 {[%emt 0:00:31]} Bxd3 23. Qxd3 {[%emt 0:00:06]} Ng4 {[%emt 0:04:20]} 24. Qd4 {[%emt 0:03:47]} Qxd4 {[%emt 0:02:17]} 25. Nxd4 {[%emt 0:00:02]} Rxa6 {[%emt 0:00:07]} 26. h3 {[%emt 0:01:46]} Rd8 {[%emt 0:04:34]} 27. Nb3 {[%emt 0:03:09]} Ne3 {[%emt 0:00:30]} 28. Rf2 {[%emt 0:00:57]} Rad6 {[%emt 0:03:56]} 29. Re1 {[%emt 0:05:06]} Rd1 {[%emt 0:02:14]} 30. Rfe2 {[%emt 0:00:16]} Nf5 {[%emt 0:05:11]} 31. Kh2 {[%emt 0:01:48]} Rxe1 {[%emt 0:00:29]} 32. Rxe1 {[%emt 0:00:02]} Ra8 {[%emt 0:00:30]} 33. Re2 {[%emt 0:00:43]} Ra4 {[%emt 0:00:36]} 34. g3 {[%emt 0:00:54]} Ra3 {[%emt 0:01:05]} 35. Kg2 Kf8 {[%emt 0:01:04]} 36. Kf2 {[%emt 0:04:07]} Nd6 {[%emt 0:00:12]} 37. Nc1 {[%emt 0:01:37]} f5 {[%emt 0:00:21]} 38. Re3 {[%emt 0:01:04]} Ne4+ {[%emt 0:00:16]} 39. Kf3 {[%emt 0:00:16]} Ra7 {[%emt 0:01:10]} 40. a3 {[%emt 0:00:45]} Rc7 {[%emt 0:00:05]} 41. Ne2 {[%emt 0:00:30]} Rc2 {[%emt 0:00:02]} 42. g4 {[%emt 0:00:30]} Ra2 {[%emt 0:00:02]} 43. gxf5 {[%emt 0:00:32]} gxf5 {[%emt 0:00:01]} 44. Rd3 {[%emt 0:00:28]} Nd2+ {[%emt 0:03:29]} 45. Ke3 {[%emt 0:00:30]} Nc4+ {[%emt 0:00:07]} 46. Kd4 {[%emt 0:00:31]} Nxa3 {[%emt 0:00:38]} 47. Ng3 {[%emt 0:00:29]} Kf7 {[%emt 0:03:08]} 48. Ke5 {[%emt 0:00:32]} Nc4+ {[%emt 0:01:04]} 49. Kxf5 {[%emt 0:00:28]} Ra5+ {[%emt 0:00:16]} 50. Kg4 {[%emt 0:00:32]} Kg6 {[%emt 0:00:44]} 51. Rd4 {[%emt 0:00:30]} Ne3+ {[%emt 0:00:56]} 52. Kf3 {[%emt 0:00:29]} Nf5 {[%emt 0:00:23]} 53. Rd3 {[%emt 0:00:31]} h5 {[%emt 0:00:16]} 54. Ne2 {[%emt 0:00:29]} Kf6 {[%emt 0:01:32]} 55. Rb3 {[%emt 0:00:31]} Ra6 {[%emt 0:00:18]} 56. Rc3 {[%emt 0:00:28]} Rd6 {[%emt 0:00:25]} 57. Kf2 {[%emt 0:00:33]} Rd2 {[%emt 0:01:15]} 58. Ke1 {[%emt 0:00:28]} Rd6 {[%emt 0:01:08]} 59. Kf2 {[%emt 0:00:30]} Ra6 60. Rd3 {[%emt 0:00:30]} Ra2 {[%emt 0:01:30]} 61. Kf3 {[%emt 0:00:30]} Ra5 {[%emt 0:03:48]} 62. Nc3 {[%emt 0:00:30]} Ke6 {[%emt 0:00:12]} 63. Ne4 {[%emt 0:00:30]} Nh4+ {[%emt 0:00:30]} 64. Kg3 {[%emt 0:00:32]} Nf5+ {[%emt 0:00:00]} 65. Kf3 {[%emt 0:00:31]} Nh4+ {[%emt 0:00:08]} 66. Kg3 {[%emt 0:00:28]} Nf5+ {[%emt 0:00:07]} 67. Kf3 {[%emt 0:00:29] Ke5} 1/2-1/2

[Event "7th Iberoamerican-ch 2019"]
[Site "Linares"]
[Date "2019.08.16"]
[Round "7.4"]
[White "Albornoz Cabrera, Carlos Daniel"]
[Black "Zambrana, Oswaldo"]
[Result "1-0"]
[ECO "D56"]
[WhiteElo "2566"]
[BlackElo "2440"]
[Annotator "ChessBase"]
[PlyCount "91"]
[EventDate "2019.08.10"]
[EventType "swiss"]
[EventCountry "ESP"]
[SourceTitle "playchess.com"]
[Source "ChessBase"]
[SourceQuality "1"]
[TimeControl "5400+30"]

1. Nf3 {[%emt 0:00:00]} Nf6 {[%emt 0:05:13]} 2. c4 {[%emt 0:00:00]} e6 {[%emt 0:00:14]} 3. Nc3 {[%emt 0:00:00]} d5 {[%emt 0:00:12]} 4. d4 {[%emt 0:00:20]} Be7 {[%emt 0:00:09]} 5. Bg5 {[%emt 0:00:18]} h6 {[%emt 0:00:18]} 6. Bh4 {[%emt 0:00:07]} O-O {[%emt 0:00:08]} 7. e3 {[%emt 0:00:14]} Nbd7 {[%emt 0:02:21]} 8. Rc1 {[%emt 0:01:14]} c6 {[%emt 0:01:59]} 9. Bd3 {[%emt 0:01:25]} b6 {[%emt 0:02:07]} 10. cxd5 {[%emt 0:00:41]} exd5 11. Qc2 {[%emt 0:01:48]} Bb7 {[%emt 0:01:46]} 12. O-O Re8 {[%emt 0:06:52]} 13. Bf5 {[%emt 0:04:34]} Nh5 {[%emt 0:04:31]} 14. Bxe7 {[%emt 0:01:35]} Rxe7 {[%emt 0:05:03]} 15. Ne2 {[%emt 0:03:27]} Nhf6 {[%emt 0:03:05]} 16. Nf4 {[%emt 0:03:02]} c5 {[%emt 0:00:25]} 17. dxc5 {[%emt 0:04:52]} Nxc5 {[%emt 0:01:36]} 18. Rfd1 {[%emt 0:05:56]} Qe8 {[%emt 0:00:47]} 19. Nd4 {[%emt 0:01:45]} a5 {[%emt 0:08:52]} 20. Qe2 {[%emt 0:05:46]} Rd8 {[%emt 0:09:08]} 21. Bd3 {[%emt 0:07:32]} Rc7 {[%emt 0:03:31]} 22. a3 {[%emt 0:06:27]} Qe5 {[%emt 0:03:26]} 23. b4 {[%emt 0:01:59]} axb4 {[%emt 0:00:07]} 24. axb4 {[%emt 0:00:05]} Nce4 {[%emt 0:00:28]} 25. Bxe4 {[%emt 0:02:11]} Nxe4 {[%emt 0:05:36]} 26. Nd3 {[%emt 0:03:15]} Qd6 {[%emt 0:03:39]} 27. Nb5 {[%emt 0:07:58]} Rxc1 {[%emt 0:00:07]} 28. Nxd6 {[%emt 0:01:44]} Nc3 {[%emt 0:00:02]} 29. Nxc1 {[%emt 0:00:08]} Nxe2+ {[%emt 0:00:09]} 30. Nxe2 {[%emt 0:00:03]} Rxd6 {[%emt 0:00:04]} 31. Nd4 {[%emt 0:00:16]} Ba6 {[%emt 0:00:14]} 32. Nf5 {[%emt 0:01:49]} Rd7 {[%emt 0:00:02]} 33. Rxd5 {[%emt 0:01:02]} Rc7 {[%emt 0:00:11]} 34. h3 {[%emt 0:02:21]} Rc1+ {[%emt 0:02:30]} 35. Kh2 {[%emt 0:00:18]} Rb1 {[%emt 0:05:20]} 36. Rd4 {[%emt 0:01:09]} Bf1 {[%emt 0:00:37]} 37. Rg4 {[%emt 0:03:19]} Kf8 {[%emt 0:14:03]} 38. Nxg7 {[%emt 0:03:09]} Be2 {[%emt 0:00:22]} 39. f3 {[%emt 0:00:47]} Rb2 {[%emt 0:00:02]} 40. Kg1 {[%emt 0:01:39]} Rb1+ {[%emt 0:01:25]} 41. Kf2 {[%emt 0:00:08]} Rb2 {[%emt 0:00:07]} 42. Nh5 {[%emt 0:02:00]} Bc4+ {[%emt 0:02:37]} 43. Kg3 {[%emt 0:00:21]} Rxb4 {[%emt 0:00:15]} 44. Nf6 {[%emt 0:00:38]} b5 {[%emt 0:00:15]} 45. Re4 {[%emt 0:01:10]} Rb2 {[%emt 0:00:36]} 46. Nd7+ {[%emt 0:00:11]} 1-0

[Event "7th Iberoamerican-ch 2019"]
[Site "Linares"]
[Date "2019.08.16"]
[Round "7.5"]
[White "Escobar Forero, Alder"]
[Black "Henriquez Villagra, Cristobal"]
[Result "1/2-1/2"]
[ECO "C78"]
[WhiteElo "2477"]
[BlackElo "2562"]
[Annotator "ChessBase"]
[PlyCount "124"]
[EventDate "2019.08.10"]
[EventType "swiss"]
[EventCountry "ESP"]
[SourceTitle "playchess.com"]
[Source "ChessBase"]
[SourceQuality "1"]
[TimeControl "5400+30"]

1. e4 {[%emt 0:00:00]} e5 {[%emt 0:01:30]} 2. Nf3 {[%emt 0:00:00]} Nc6 {[%emt 0:00:06]} 3. Bb5 {[%emt 0:00:00]} a6 {[%emt 0:00:05]} 4. Ba4 {[%emt 0:00:00]} Nf6 {[%emt 0:00:22]} 5. O-O {[%emt 0:00:15]} Bc5 {[%emt 0:00:52]} 6. Nxe5 {[%emt 0:04:23]} Nxe5 {[%emt 0:03:38]} 7. d4 {[%emt 0:00:06]} b5 {[%emt 0:02:51]} 8. dxe5 {[%emt 0:16:55]} Nxe4 {[%emt 0:07:39]} 9. Bb3 {[%emt 0:06:53]} Bb7 {[%emt 0:31:20]} 10. Qg4 {[%emt 0:20:01]} Qe7 {[%emt 0:01:18]} 11. Nc3 {[%emt 0:06:52]} f5 {[%emt 0:06:59]} 12. exf6 {[%emt 0:02:02]} Nxf6 {[%emt 0:00:34]} 13. Qg5 {[%emt 0:03:49]} O-O-O {[%emt 0:02:59]} 14. Bf4 {[%emt 0:03:47]} Rde8 {[%emt 0:05:38]} 15. Rad1 {[%emt 0:07:54]} h6 {[%emt 0:02:12]} 16. Qg6 {[%emt 0:01:11]} Rhf8 {[%emt 0:01:19]} 17. Bg3 {[%emt 0:02:01]} Ne4 {[%emt 0:08:22]} 18. Nxe4 {[%emt 0:04:35]} Qxe4 {[%emt 0:00:18]} 19. Qxe4 {[%emt 0:00:06]} Rxe4 {[%emt 0:00:02]} 20. Rfe1 {[%emt 0:02:01]} Rg4 {[%emt 0:02:45]} 21. Re2 {[%emt 0:01:03]} h5 {[%emt 0:03:02]} 22. Bd5 {[%emt 0:00:50]} h4 {[%emt 0:00:37]} 23. Bxb7+ {[%emt 0:00:40]} Kxb7 {[%emt 0:00:04]} 24. Be5 {[%emt 0:00:20]} d6 {[%emt 0:05:33]} 25. h3 {[%emt 0:00:38]} Rg5 {[%emt 0:01:29]} 26. Bd4 {[%emt 0:00:06]} Rd5 {[%emt 0:02:27]} 27. Re4 {[%emt 0:01:05]} g5 {[%emt 0:02:26]} 28. Rd3 {[%emt 0:00:08]} Kc6 {[%emt 0:02:00]} 29. Kf1 {[%emt 0:00:58]} Bxd4 {[%emt 0:00:54]} 30. Rdxd4 {[%emt 0:00:39]} Rdf5 {[%emt 0:00:05]} 31. f3 {[%emt 0:00:23]} Kd7 {[%emt 0:00:10]} 32. Rd3 {[%emt 0:01:17]} a5 {[%emt 0:01:16]} 33. Rde3 {[%emt 0:00:55]} R8f7 {[%emt 0:00:18]} 34. c4 {[%emt 0:03:50]} bxc4 {[%emt 0:00:41]} 35. Rxc4 {[%emt 0:00:01]} Rf4 {[%emt 0:00:37]} 36. Ree4 {[%emt 0:01:22]} c5 {[%emt 0:00:51]} 37. Kf2 {[%emt 0:02:00]} Kc6 {[%emt 0:00:39]} 38. Ke3 {[%emt 0:01:20]} R4f5 {[%emt 0:01:41]} 39. Re8 {[%emt 0:00:36]} Rb7 {[%emt 0:00:30]} 40. b3 {[%emt 0:00:40]} Rb4 {[%emt 0:01:40]} 41. Ra8 {[%emt 0:04:18]} Rf4 {[%emt 0:00:02]} 42. Re4 {[%emt 0:01:28]} Kd5 {[%emt 0:00:50]} 43. Ree8 {[%emt 0:03:09]} a4 {[%emt 0:00:36]} 44. Rg8 {[%emt 0:00:01]} Rf5 {[%emt 0:01:00]} 45. Rxa4 {[%emt 0:01:17]} Rxa4 {[%emt 0:00:05]} 46. bxa4 {[%emt 0:00:00]} Kc4 {[%emt 0:00:20]} 47. Rb8 {[%emt 0:00:57]} d5 {[%emt 0:00:55]} 48. a5 {[%emt 0:00:31]} Rf7 {[%emt 0:01:14]} 49. a6 {[%emt 0:00:30]} Ra7 {[%emt 0:00:04]} 50. Rb6 {[%emt 0:00:01]} Kc3 {[%emt 0:00:07]} 51. Rb3+ {[%emt 0:00:42]} Kc4 {[%emt 0:01:33]} 52. Rb6 {[%emt 0:00:03]} Kc3 {[%emt 0:00:11]} 53. Rb3+ {[%emt 0:00:01]} Kc2 {[%emt 0:00:59]} 54. Rb5 {[%emt 0:00:02]} d4+ {[%emt 0:00:03]} 55. Ke4 {[%emt 0:00:08]} Re7+ {[%emt 0:00:58]} 56. Kd5 {[%emt 0:00:15]} d3 {[%emt 0:00:22]} 57. Rxc5+ {[%emt 0:00:12]} Kb2 {[%emt 0:00:01]} 58. Kc6 {[%emt 0:00:38]} Re6+ {[%emt 0:00:12]} 59. Kb7 {[%emt 0:00:19]} Re7+ {[%emt 0:00:21]} 60. Kb8 {[%emt 0:01:27]} Re8+ {[%emt 0:00:52]} 61. Kc7 {[%emt 0:01:29]} Re7+ {[%emt 0:00:08]} 62. Kb6 {[%emt 0:00:29]} Re6+ {[%emt 0:00:20]} 1/2-1/2

[Event "7th Iberoamerican-ch 2019"]
[Site "Linares"]
[Date "2019.08.16"]
[Round "7.6"]
[White "Krysa, Leandro"]
[Black "Huerga Leache, Mikel"]
[Result "1/2-1/2"]
[ECO "A36"]
[WhiteElo "2516"]
[BlackElo "2440"]
[Annotator "ChessBase"]
[PlyCount "118"]
[EventDate "2019.08.10"]
[EventType "swiss"]
[EventCountry "ESP"]
[SourceTitle "playchess.com"]
[Source "ChessBase"]
[SourceQuality "1"]
[TimeControl "5400+30"]

1. c4 {[%emt 0:00:00]} c5 {[%emt 0:00:00]} 2. g3 {[%emt 0:00:53]} Nc6 {[%emt 0:00:15]} 3. Bg2 {[%emt 0:00:58]} g6 {[%emt 0:00:37]} 4. Nc3 {[%emt 0:03:10]} Bg7 {[%emt 0:00:49]} 5. d3 {[%emt 0:00:51]} d6 {[%emt 0:01:16]} 6. Qd2 {[%emt 0:00:21]} e5 {[%emt 0:07:00]} 7. e3 {[%emt 0:01:38]} Nge7 {[%emt 0:00:33]} 8. Nge2 {[%emt 0:00:09]} h5 {[%emt 0:03:26]} 9. h4 {[%emt 0:06:08]} a6 {[%emt 0:15:58]} 10. b3 {[%emt 0:01:00]} Rb8 {[%emt 0:04:14]} 11. Bb2 {[%emt 0:00:52]} b5 {[%emt 0:01:05]} 12. Nd5 {[%emt 0:07:18]} Bb7 {[%emt 0:01:13]} 13. O-O {[%emt 0:07:31]} O-O {[%emt 0:01:26]} 14. Kh2 {[%emt 0:03:11]} f5 {[%emt 0:02:09]} 15. f4 {[%emt 0:01:19]} Kh8 {[%emt 0:11:24]} 16. Rae1 {[%emt 0:08:50]} Qd7 {[%emt 0:05:29]} 17. e4 {[%emt 0:11:10]} Rbe8 {[%emt 0:05:19]} 18. fxe5 {[%emt 0:01:57]} dxe5 {[%emt 0:05:52]} 19. Bh3 {[%emt 0:04:54]} Kh7 {[%emt 0:03:46]} 20. Qg5 {[%emt 0:14:34]} Bc8 {[%emt 0:06:12]} 21. exf5 {[%emt 0:14:17]} Nxf5 {[%emt 0:00:27]} 22. Nec3 {[%emt 0:01:53]} Nce7 {[%emt 0:07:35]} 23. Nxe7 {[%emt 0:01:14]} Rxe7 {[%emt 0:02:29]} 24. Nd5 {[%emt 0:03:10]} Ref7 {[%emt 0:03:54]} 25. Bxe5 {[%emt 0:03:01]} Bxe5 {[%emt 0:06:20]} 26. Rxe5 {[%emt 0:00:04]} Qd6 {[%emt 0:00:04]} 27. Bxf5 {[%emt 0:00:12]} Bxf5 {[%emt 0:00:11]} 28. Re7 {[%emt 0:00:38]} Rxe7 {[%emt 0:02:00]} 29. Qxe7+ {[%emt 0:00:12]} Qxe7 {[%emt 0:00:03]} 30. Nxe7 {[%emt 0:00:03]} Kg7 {[%emt 0:00:45]} 31. Nxf5+ {[%emt 0:02:01]} gxf5 {[%emt 0:00:01]} 32. cxb5 {[%emt 0:00:56]} axb5 {[%emt 0:00:06]} 33. Rc1 {[%emt 0:00:14]} Rc8 {[%emt 0:00:51]} 34. Kg2 {[%emt 0:00:39]} Kf6 {[%emt 0:00:20]} 35. Kf3 {[%emt 0:01:10]} Ke5 {[%emt 0:00:01]} 36. Ke3 {[%emt 0:00:27]} b4 {[%emt 0:00:48]} 37. Rc4 {[%emt 0:00:13]} Kd5 {[%emt 0:00:41]} 38. d4 {[%emt 0:00:47]} cxd4+ {[%emt 0:02:11]} 39. Rxd4+ {[%emt 0:00:06]} Ke5 {[%emt 0:00:01]} 40. Rc4 {[%emt 0:00:51]} Ra8 {[%emt 0:00:21]} 41. Rc5+ {[%emt 0:00:24]} Ke6 {[%emt 0:00:58]} 42. Kf4 {[%emt 0:00:16]} Rxa2 {[%emt 0:00:01]} 43. Re5+ {[%emt 0:00:15]} Kd6 {[%emt 0:01:40]} 44. Rxf5 {[%emt 0:00:38]} Rb2 {[%emt 0:00:16]} 45. Rxh5 {[%emt 0:00:27]} Rxb3 {[%emt 0:00:01]} 46. Rh8 {[%emt 0:00:35]} Rc3 {[%emt 0:00:27]} 47. Rb8 {[%emt 0:00:38]} Rc4+ {[%emt 0:00:04]} 48. Kg5 {[%emt 0:00:44]} Kc7 {[%emt 0:00:01]} 49. Rf8 {[%emt 0:00:47]} b3 {[%emt 0:00:10]} 50. Rf2 {[%emt 0:00:47]} Rb4 {[%emt 0:03:04]} 51. Rb2 {[%emt 0:00:06]} Kd7 {[%emt 0:00:10]} 52. Kf5 {[%emt 0:00:39]} Kd6 {[%emt 0:00:58]} 53. h5 {[%emt 0:00:50]} Ke7 {[%emt 0:00:13]} 54. g4 {[%emt 0:00:27]} Kf7 {[%emt 0:00:14]} 55. g5 {[%emt 0:00:33]} Rb5+ {[%emt 0:00:12]} 56. Kf4 {[%emt 0:00:18]} Kg7 {[%emt 0:00:06]} 57. h6+ {[%emt 0:00:31]} Kg6 {[%emt 0:00:26]} 58. Ke4 {[%emt 0:00:37]} Rxg5 {[%emt 0:00:15]} 59. Rxb3 {[%emt 0:00:05]} Kxh6 1/2-1/2

[Event "7th Iberoamerican-ch 2019"]
[Site "Linares"]
[Date "2019.08.16"]
[Round "7.8"]
[White "Larino Nieto, David"]
[Black "Salgado Lopez, Ivan"]
[Result "1/2-1/2"]
[ECO "A01"]
[WhiteElo "2457"]
[BlackElo "2596"]
[Annotator "ChessBase"]
[PlyCount "89"]
[EventDate "2019.08.10"]
[EventType "swiss"]
[EventCountry "ESP"]
[SourceTitle "playchess.com"]
[Source "ChessBase"]
[SourceQuality "1"]
[TimeControl "5400+30"]

1. b3 {[%emt 0:01:56]} e5 {[%emt 0:00:38]} 2. Bb2 {[%emt 0:00:02]} Nc6 {[%emt 0:00:11]} 3. e3 {[%emt 0:00:05]} g6 {[%emt 0:00:38]} 4. d4 {[%emt 0:02:17]} exd4 {[%emt 0:04:01]} 5. Nf3 {[%emt 0:00:16]} Bg7 {[%emt 0:02:37]} 6. Be2 {[%emt 0:08:24]} Nf6 {[%emt 0:01:48]} 7. Nxd4 {[%emt 0:04:07]} Nxd4 {[%emt 0:04:41]} 8. Bxd4 {[%emt 0:00:02]} d5 {[%emt 0:01:59]} 9. O-O {[%emt 0:01:40]} O-O {[%emt 0:02:18]} 10. Nd2 {[%emt 0:02:48]} Qe7 {[%emt 0:02:17]} 11. Bf3 {[%emt 0:05:53]} c5 {[%emt 0:07:42]} 12. Bb2 {[%emt 0:00:26]} Bf5 {[%emt 0:02:12]} 13. Rc1 {[%emt 0:02:10]} Rad8 {[%emt 0:02:25]} 14. Qe2 {[%emt 0:00:45]} Rfe8 {[%emt 0:00:39]} 15. Rfe1 {[%emt 0:00:46]} h5 {[%emt 0:02:51]} 16. h3 {[%emt 0:00:17]} Qc7 {[%emt 0:03:34]} 17. Ba1 {[%emt 0:01:11]} h4 {[%emt 0:10:37]} 18. Red1 {[%emt 0:08:59]} d4 {[%emt 0:06:41]} 19. Nf1 {[%emt 0:01:10]} a6 {[%emt 0:02:18]} 20. c4 {[%emt 0:04:48]} Ne4 {[%emt 0:04:25]} 21. Bxe4 {[%emt 0:04:16]} Bxe4 {[%emt 0:03:03]} 22. f3 {[%emt 0:04:02]} Bc6 {[%emt 0:05:16]} 23. Qf2 {[%emt 0:00:32]} Qa5 {[%emt 0:03:46]} 24. exd4 {[%emt 0:03:34]} cxd4 {[%emt 0:00:21]} 25. Bxd4 {[%emt 0:00:12]} Bxd4 {[%emt 0:09:16]} 26. Rxd4 {[%emt 0:00:06]} Rxd4 {[%emt 0:00:16]} 27. Qxd4 {[%emt 0:00:02]} Bxf3 {[%emt 0:03:58]} 28. Qxh4 {[%emt 0:03:22]} Qc5+ {[%emt 0:00:36]} 29. Kh1 {[%emt 0:00:02]} Bc6 {[%emt 0:09:21]} 30. Re1 {[%emt 0:03:29]} Rxe1 {[%emt 0:03:00]} 31. Qxe1 {[%emt 0:00:03]} Qf5 {[%emt 0:00:19]} 32. Kg1 {[%emt 0:00:26]} a5 {[%emt 0:00:23]} 33. Qd2 {[%emt 0:01:00]} a4 {[%emt 0:00:30]} 34. bxa4 {[%emt 0:06:56]} Bxa4 {[%emt 0:00:16]} 35. Qd8+ {[%emt 0:01:02]} Kh7 {[%emt 0:00:34]} 36. Qd4 {[%emt 0:00:06]} Bc6 {[%emt 0:00:26]} 37. a3 {[%emt 0:00:12]} Qc2 {[%emt 0:00:36]} 38. Ne3 {[%emt 0:01:20]} Qc1+ {[%emt 0:00:18]} 39. Kh2 {[%emt 0:00:01]} Qxa3 {[%emt 0:00:28]} 40. Ng4 {[%emt 0:00:04]} Qa2 {[%emt 0:00:51]} 41. Nf6+ {[%emt 0:00:46]} Kh6 {[%emt 0:00:48]} 42. Nd5 {[%emt 0:00:22]} Kh7 {[%emt 0:00:51]} 43. Qh4+ {[%emt 0:00:32]} Kg8 {[%emt 0:00:33]} 44. Qe4 {[%emt 0:05:29]} Qb2 {[%emt 0:00:33]} 45. Ne7+ 1/2-1/2

[Event "7th Iberoamerican-ch 2019"]
[Site "Linares"]
[Date "2019.08.16"]
[Round "7.9"]
[White "Lopez Martinez, Josep Manuel"]
[Black "Fluvia Poyatos, Jordi"]
[Result "1-0"]
[ECO "A50"]
[WhiteElo "2581"]
[BlackElo "2455"]
[Annotator "ChessBase"]
[PlyCount "89"]
[EventDate "2019.08.10"]
[EventType "swiss"]
[EventCountry "ESP"]
[SourceTitle "playchess.com"]
[Source "ChessBase"]
[SourceQuality "1"]
[TimeControl "5400+30"]

1. d4 {[%emt 0:00:00]} Nf6 {[%emt 0:00:12]} 2. c4 {[%emt 0:00:02]} g6 {[%emt 0:00:20]} 3. f3 {[%emt 0:00:34]} Nc6 {[%emt 0:02:50]} 4. d5 {[%emt 0:00:34]} Ne5 {[%emt 0:01:42]} 5. e4 {[%emt 0:00:59]} d6 {[%emt 0:00:43]} 6. Nc3 {[%emt 0:00:34]} Bg7 {[%emt 0:01:05]} 7. f4 {[%emt 0:00:48]} Ned7 {[%emt 0:02:04]} 8. Nh3 {[%emt 0:00:43]} O-O {[%emt 0:04:26]} 9. Be3 {[%emt 0:01:45]} e6 {[%emt 0:10:56]} 10. dxe6 {[%emt 0:01:32]} fxe6 {[%emt 0:00:09]} 11. Be2 {[%emt 0:01:58]} b6 {[%emt 0:03:25]} 12. Qc2 {[%emt 0:00:37]} Bb7 {[%emt 0:00:45]} 13. O-O {[%emt 0:06:26]} Qe7 {[%emt 0:03:06]} 14. Rad1 {[%emt 0:01:49]} Rae8 {[%emt 0:02:53]} 15. Nf2 {[%emt 0:04:34]} Nh5 {[%emt 0:09:11]} 16. g3 {[%emt 0:08:07]} Bh6 {[%emt 0:02:13]} 17. Qd2 {[%emt 0:03:55]} Rd8 {[%emt 0:10:54]} 18. Bf3 {[%emt 0:05:56]} Nhf6 {[%emt 0:13:02]} 19. Bg2 {[%emt 0:01:44]} Ba8 {[%emt 0:05:37]} 20. Qe2 {[%emt 0:00:49]} Bg7 {[%emt 0:03:58]} 21. Nb5 {[%emt 0:02:29]} e5 {[%emt 0:09:08]} 22. Nxc7 {[%emt 0:02:05]} exf4 {[%emt 0:00:06]} 23. Bxf4 {[%emt 0:00:09]} Ne5 {[%emt 0:00:19]} 24. Nd5 {[%emt 0:01:55]} Bxd5 {[%emt 0:00:47]} 25. exd5 {[%emt 0:00:20]} Nfd7 {[%emt 0:00:27]} 26. Ne4 {[%emt 0:01:41]} h6 {[%emt 0:00:29]} 27. Bh3 {[%emt 0:00:36]} Nc5 {[%emt 0:01:01]} 28. Nxc5 {[%emt 0:04:07]} bxc5 {[%emt 0:00:06]} 29. Be6+ {[%emt 0:00:11]} Kh7 {[%emt 0:02:09]} 30. Qe4 {[%emt 0:01:15]} Kh8 {[%emt 0:03:01]} 31. b4 {[%emt 0:05:57]} Qc7 {[%emt 0:03:11]} 32. b5 {[%emt 0:01:23]} Qe7 {[%emt 0:02:24]} 33. Bxe5 {[%emt 0:02:08]} Bxe5 {[%emt 0:00:15]} 34. Qxg6 {[%emt 0:00:09]} Qg7 {[%emt 0:00:40]} 35. Qxg7+ {[%emt 0:05:44]} Kxg7 {[%emt 0:00:04]} 36. Rd3 {[%emt 0:01:58]} Bd4+ {[%emt 0:02:11]} 37. Kg2 {[%emt 0:00:09]} Rxf1 {[%emt 0:00:02]} 38. Kxf1 {[%emt 0:00:07]} Rf8+ {[%emt 0:00:02]} 39. Ke1 {[%emt 0:00:09]} Bb2 {[%emt 0:02:17]} 40. Rb3 {[%emt 0:00:34]} Bc1 {[%emt 0:00:07]} 41. a4 {[%emt 0:00:14]} Rb8 {[%emt 0:01:36]} 42. a5 {[%emt 0:01:06]} Bg5 {[%emt 0:00:21]} 43. Rf3 {[%emt 0:01:14]} Rb7 {[%emt 0:00:40]} 44. a6 {[%emt 0:01:26]} Rc7 {[%emt 0:00:32]} 45. b6 {[%emt 0:00:27]} 1-0

[Event "7th Iberoamerican-ch 2019"]
[Site "Linares"]
[Date "2019.08.16"]
[Round "7.11"]
[White "Salinas Herrera, Pablo"]
[Black "Teran Alvarez, Ismael"]
[Result "1-0"]
[ECO "D37"]
[WhiteElo "2506"]
[BlackElo "2392"]
[Annotator "ChessBase"]
[PlyCount "71"]
[EventDate "2019.08.10"]
[EventType "swiss"]
[EventCountry "ESP"]
[SourceTitle "playchess.com"]
[Source "ChessBase"]
[SourceQuality "1"]
[TimeControl "5400+30"]

1. Nf3 {[%emt 0:00:43]} Nf6 {[%emt 0:00:09]} 2. d4 {[%emt 0:00:08]} d5 {[%emt 0:00:44]} 3. c4 {[%emt 0:03:33]} e6 {[%emt 0:00:09]} 4. Nc3 {[%emt 0:03:32]} Be7 {[%emt 0:00:41]} 5. Bf4 {[%emt 0:02:19]} O-O {[%emt 0:01:11]} 6. e3 {[%emt 0:00:04]} Nbd7 {[%emt 0:01:30]} 7. c5 {[%emt 0:04:44]} Nh5 {[%emt 0:00:44]} 8. Bd3 {[%emt 0:02:59]} Nxf4 {[%emt 0:01:08]} 9. exf4 {[%emt 0:00:07]} b6 {[%emt 0:01:15]} 10. b4 {[%emt 0:04:07]} a5 {[%emt 0:00:22]} 11. a3 {[%emt 0:00:03]} c6 {[%emt 0:01:01]} 12. O-O {[%emt 0:00:43]} Qc7 {[%emt 0:00:33]} 13. g3 {[%emt 0:03:44]} Ba6 {[%emt 0:00:56]} 14. Re1 {[%emt 0:12:49]} Bxd3 {[%emt 0:23:06]} 15. Qxd3 {[%emt 0:00:09]} Ra7 {[%emt 0:07:01]} 16. Rac1 {[%emt 0:15:44]} axb4 {[%emt 0:02:26]} 17. axb4 {[%emt 0:00:06]} Bf6 {[%emt 0:17:22]} 18. Nd1 {[%emt 0:06:20]} bxc5 {[%emt 0:06:32]} 19. bxc5 {[%emt 0:00:10]} Rfa8 {[%emt 0:00:18]} 20. Ne3 {[%emt 0:00:12]} Ra3 {[%emt 0:00:37]} 21. Qe2 {[%emt 0:04:19]} Ra2 {[%emt 0:06:32]} 22. Rc2 {[%emt 0:01:28]} R2a4 {[%emt 0:01:56]} 23. Rd1 {[%emt 0:00:12]} g6 {[%emt 0:04:06]} 24. Ng4 {[%emt 0:00:06]} Bg7 {[%emt 0:00:07]} 25. Nge5 {[%emt 0:00:02]} f6 {[%emt 0:07:37]} 26. Nd3 {[%emt 0:05:35]} Re8 {[%emt 0:00:54]} 27. Ra2 {[%emt 0:00:35]} Qa5 {[%emt 0:03:41]} 28. Rda1 {[%emt 0:00:32]} Rxa2 {[%emt 0:00:04]} 29. Rxa2 {[%emt 0:00:03]} Qb5 {[%emt 0:00:06]} 30. Ra7 {[%emt 0:00:44]} Re7 {[%emt 0:01:47]} 31. h4 {[%emt 0:03:05]} Kf7 {[%emt 0:01:22]} 32. h5 {[%emt 0:00:50]} Nf8 {[%emt 0:02:00]} 33. Nde5+ {[%emt 0:03:13]} fxe5 {[%emt 0:01:18]} 34. Ng5+ {[%emt 0:00:04]} Ke8 {[%emt 0:00:38]} 35. Ra8+ {[%emt 0:00:04]} Kd7 {[%emt 0:00:30]} 36. Qa2 {[%emt 0:00:05]} 1-0